bitfinex-derivatives/quotes_BTCF0:USTF0_20250129
["timestamp","ask_amount","ask_price","bid_price","bid_amount"]
[1738113306635,0.70881363,101810.0,101800.0,0.1335]
[1738113308450,0.80139515,101810.0,101800.0,0.1335]
[1738113308944,0.70881363,101810.0,101800.0,0.1335]
[1738113309537,0.70881363,101810.0,101800.0,0.271099]
[1738113309932,0.70881363,101810.0,101800.0,0.36368052]
[1738113310649,0.21042763,101810.0,101800.0,0.271099]
[1738113312743,0.21042763,101810.0,101800.0,0.72448052]
[1738113313150,0.21042763,101810.0,101800.0,0.631899]
[1738113313346,0.21042763,101810.0,101800.0,0.271099]
[1738113313347,0.34801363,101810.0,101800.0,0.271099]
[1738113314647,0.34801363,101810.0,101800.0,0.72448052]
[1738113315551,0.34801363,101810.0,101800.0,0.36368052]
[1738113316040,0.21042763,101810.0,101800.0,0.36368052]
[1738113316240,0.21042763,101810.0,101800.0,0.72448052]
[1738113320850,0.26920805,101810.0,101800.0,0.72448052]
[1738113321442,0.26520805,101810.0,101800.0,0.72548052]
[1738113323649,0.26420805,101810.0,101800.0,0.72448052]
[1738113323852,0.26520805,101810.0,101800.0,0.72648052]
[1738113324946,0.1184258,101810.0,101800.0,0.72648052]
[1738113328656,0.1184258,101810.0,101800.0,0.69473566]
[1738113328854,0.20671327,101810.0,101800.0,0.69473566]
[1738113329252,0.40513593,101810.0,101800.0,0.633899]
[1738113330059,0.76593593,101810.0,101800.0,0.1355]
[1738113330358,1.30493593,101810.0,101800.0,0.1345]
[1738113330855,0.76493593,101810.0,101800.0,0.1345]
[1738113331061,0.76693593,101810.0,101800.0,0.1335]
[1738113331247,1.30693593,101810.0,101800.0,0.1335]
[1738113331443,1.30493593,101810.0,101800.0,0.1335]
[1738113331657,1.30993593,101810.0,101800.0,0.1335]
[1738113332661,0.65016825,101810.0,101800.0,0.1335]
[1738113332955,0.64516825,101810.0,101800.0,0.1335]
[1738113333263,0.64716825,101810.0,101800.0,0.271099]
[1738113333558,0.28436825,101810.0,101800.0,0.271099]
[1738113333758,0.28936825,101810.0,101800.0,0.271099]
[1738113334161,0.28436825,101810.0,101800.0,0.271099]
[1738113334348,0.28636825,101810.0,101800.0,0.271099]
[1738113334954,0.14878225,101810.0,101800.0,0.36382786]
[1738113335763,0.32520075,101810.0,101800.0,0.36382786]
[1738113336556,0.32520075,101810.0,101800.0,0.72462786]
[1738113336755,0.27320075,101810.0,101800.0,0.72462786]
[1738113338958,0.09029527,101810.0,101800.0,0.95852618]
[1738113342952,0.08929527,101810.0,101800.0,0.95952618]
[1738113343158,0.001,101810.0,101800.0,1.57147086]
[1738113346066,0.001,101810.0,101800.0,1.25115685]
[1738113346256,0.001,101810.0,101800.0,0.95952618]
[1738113352677,0.22601785,101820.0,101810.0,0.137586]
[1738113352971,0.22601785,101820.0,101810.0,0.498386]
[1738113353270,0.22601785,101820.0,101800.0,0.82192718]
[1738113353271,0.137586,101810.0,101800.0,0.95952118]
[1738113353667,0.137586,101810.0,101800.0,0.47149232]
[1738113353872,0.62291486,101810.0,101800.0,0.33389832]
[1738113354570,0.62291486,101810.0,101800.0,0.33489832]
[1738113354767,0.62291486,101810.0,101800.0,0.101]
[1738113355873,0.62291486,101810.0,101800.0,0.1]
[1738113356073,0.62491486,101810.0,101800.0,0.1]
[1738113356472,0.62291486,101810.0,101800.0,0.1]
[1738113356666,0.62791486,101810.0,101800.0,0.1]
[1738113357973,0.535186,101810.0,101800.0,0.1]
[1738113358478,0.1814185,101810.0,101800.0,0.69112786]
[1738113358668,0.1814185,101810.0,101800.0,0.72232786]
[1738113360178,0.2046495,101850.0,101840.0,0.137545]
[1738113360484,0.2046495,101850.0,101840.0,0.23027386]
[1738113360781,0.3421815,101850.0,101840.0,0.137545]
[1738113362376,0.7029815,101850.0,101840.0,0.137545]
[1738113362582,0.7039815,101850.0,101840.0,0.137545]
[1738113362782,0.7039815,101850.0,101840.0,0.23027386]
[1738113363576,0.7039815,101850.0,101830.0,0.53020058]
[1738113363577,0.137545,101840.0,101830.0,0.53020058]
[1738113363772,0.59107386,101840.0,101830.0,0.00014758]
[1738113363974,0.529245,101840.0,101830.0,0.00014758]
[1738113364173,0.593045,101840.0,101830.0,0.00014758]
[1738113364375,1.133045,101840.0,101830.0,0.00014758]
[1738113364972,0.593045,101840.0,101830.0,0.00014758]
[1738113365373,1.133045,101840.0,101830.0,0.00014758]
[1738113365975,0.593045,101840.0,101830.0,0.00214758]
[1738113366374,0.71051016,101840.0,101830.0,0.00214758]
[1738113369692,0.73987237,101840.0,101830.0,0.00214758]
[1738113371185,0.64517237,101840.0,101830.0,0.09487644]
[1738113372694,0.64517237,101840.0,101830.0,0.00214758]
[1738113373779,0.73790123,101840.0,101830.0,0.00214758]
[1738113378601,0.137586,101810.0,101800.0,0.1942]
[1738113378799,0.498386,101810.0,101800.0,0.1942]
[1738113380093,0.499386,101810.0,101800.0,0.2012]
[1738113380803,0.59211486,101810.0,101800.0,0.1399]
[1738113381102,0.59211486,101810.0,101800.0,0.107]
[1738113382103,0.59111486,101810.0,101800.0,0.1]
[1738113382294,0.59211486,101810.0,101800.0,0.103]
[1738113383297,0.59611486,101810.0,101800.0,0.1]
[1738113384004,0.503386,101810.0,101800.0,0.19272886]
[1738113384191,0.82641741,101810.0,101800.0,0.19272886]
[1738113384395,0.46561741,101810.0,101800.0,0.33032786]
[1738113385298,0.46561741,101810.0,101800.0,0.237599]
[1738113386205,0.46561741,101810.0,101800.0,0.33032786]
[1738113386998,0.32803141,101810.0,101800.0,0.33032786]
[1738113387597,0.210472,101810.0,101800.0,0.69112786]
[1738113387905,0.210472,101810.0,101800.0,0.33032786]
[1738113389107,0.210472,101810.0,101800.0,0.237599]
[1738113389498,0.210472,101810.0,101800.0,0.24730219]
[1738113390397,0.348058,101810.0,101800.0,0.34003105]
[1738113390597,0.348058,101810.0,101800.0,0.40473105]
[1738113390797,0.23064543,101810.0,101800.0,0.40473105]
[1738113391197,0.23064543,101810.0,101800.0,0.31200219]
[1738113391601,0.23064543,101810.0,101800.0,0.67280219]
[1738113392604,0.23064543,101810.0,101800.0,0.31200219]
[1738113393099,0.23064543,101810.0,101800.0,0.67280219]
[1738113393408,0.59144543,101810.0,101800.0,0.31200219]
[1738113393897,0.23064543,101810.0,101800.0,0.31200219]
[1738113394102,0.23064543,101810.0,101800.0,0.17440319]
[1738113394300,0.80158686,101810.0,101800.0,0.17440319]
[1738113395010,0.708858,101810.0,101800.0,0.17440319]
[1738113398113,0.80158686,101810.0,101800.0,0.17440319]
[1738113398811,0.74294732,101810.0,101800.0,0.17440319]
[1738113400601,0.74294732,101810.0,101800.0,0.1647]
[1738113401809,0.74294732,101810.0,101800.0,0.1]
[1738113402011,0.80624732,101810.0,101800.0,0.1]
[1738113402311,0.98244627,101810.0,101800.0,0.1]
[1738113402911,0.137626,101780.0,101770.0,0.26679832]
[1738113403110,0.137626,101780.0,101770.0,0.23389832]
[1738113403111,0.95195486,101780.0,101770.0,0.23389832]
[1738113403504,0.98545486,101780.0,101770.0,0.23389832]
[1738113404816,0.98645486,101780.0,101770.0,0.23789832]
[1738113406511,1.1041435,101780.0,101770.0,0.004]
[1738113407320,1.1357435,101780.0,101770.0,0.004]
[1738113410721,0.13764,101770.0,101760.0,0.0626]
[1738113410916,0.49844,101770.0,101760.0,0.0626]
[1738113412120,0.50044,101770.0,101760.0,0.0626]
[1738113414529,0.59316886,101770.0,101760.0,0.0626]
[1738113416412,0.68118981,101770.0,101760.0,0.0626]
[1738113419924,0.58846095,101770.0,101760.0,0.0626]
[1738113420718,0.68118981,101770.0,101760.0,0.0626]
[1738113421123,0.58646095,101770.0,101760.0,0.0626]
[1738113421322,0.58846095,101770.0,101760.0,0.0626]
[1738113421730,0.58646095,101770.0,101760.0,0.0626]
[1738113421914,0.58846095,101770.0,101760.0,0.0626]
[1738113422313,0.58646095,101770.0,101760.0,0.0626]
[1738113422518,0.58846095,101770.0,101760.0,0.0626]
[1738113424630,0.70578542,101770.0,101760.0,0.0626]
[1738113425218,0.20734542,101770.0,101760.0,0.65378186]
[1738113426520,0.15694542,101770.0,101760.0,0.65378186]
[1738113426826,0.00524542,101770.0,101760.0,0.65378186]
[1738113427020,0.14683246,101780.0,101760.0,0.60885772]
[1738113427222,0.14158704,101780.0,101770.0,0.59116886]
[1738113427821,0.11761996,101790.0,101780.0,0.137626]
[1738113428029,0.11761996,101790.0,101780.0,0.498426]
[1738113429231,0.11861996,101790.0,101780.0,0.502426]
[1738113430030,0.11861996,101790.0,101780.0,0.533126]
[1738113430236,0.11861996,101790.0,101780.0,0.597426]
[1738113431032,0.11761996,101790.0,101780.0,0.593426]
[1738113431233,0.11761996,101790.0,101780.0,0.595426]
[1738113431733,0.00014758,101790.0,101780.0,0.595426]
[1738113433525,0.00014758,101790.0,101780.0,0.6053013]
[1738113434034,0.00014758,101790.0,101780.0,0.69803016]
[1738113438733,0.31377295,101820.0,101810.0,0.137585]
[1738113438938,0.31377295,101820.0,101810.0,0.23031386]
[1738113439231,0.31377295,101820.0,101810.0,0.59111386]
[1738113439232,0.17619895,101820.0,101810.0,0.59111386]
[1738113439539,0.8001105,101830.0,101810.0,0.59111386]
[1738113440141,0.23669708,101830.0,101820.0,0.59110086]
[1738113440338,0.43508394,101830.0,101820.0,0.498372]
[1738113440632,0.43508394,101830.0,101820.0,0.137572]
[1738113440633,0.34235508,101830.0,101820.0,0.137572]
[1738113441225,0.70315508,101830.0,101820.0,0.137572]
[1738113441530,0.34235508,101830.0,101820.0,0.137572]
[1738113442236,0.70315508,101830.0,101820.0,0.137572]
[1738113442632,0.70415508,101830.0,101820.0,0.137572]
[1738113442833,0.137572,101820.0,101810.0,0.13773058]
[1738113443524,0.137572,101820.0,101810.0,0.23045944]
[1738113443525,0.498372,101820.0,101810.0,0.23045944]
[1738113444124,0.137572,101820.0,101810.0,0.23045944]
[1738113444530,0.137572,101820.0,101810.0,0.23245944]
[1738113444927,0.00014758,101830.0,101820.0,0.137572]
[1738113445128,0.00014758,101830.0,101820.0,0.62390086]
[1738113445728,0.49850558,101830.0,101820.0,0.26310086]
[1738113445924,0.137572,101820.0,101810.0,0.14946422]
[1738113446143,0.137572,101820.0,101810.0,0.24019308]
[1738113448141,0.137572,101820.0,101810.0,0.24219308]
[1738113449137,0.137572,101820.0,101810.0,0.14946422]
[1738113449138,0.531072,101820.0,101810.0,0.14946422]
[1738113449334,0.170272,101820.0,101810.0,0.14946422]
[1738113450831,0.531072,101820.0,101810.0,0.14946422]
[1738113451231,0.170272,101820.0,101810.0,0.14946422]
[1738113451432,0.531072,101820.0,101810.0,0.24219308]
[1738113451639,0.170272,101820.0,101810.0,0.24219308]
[1738113452847,0.531072,101820.0,101810.0,0.24219308]
[1738113453249,0.170272,101820.0,101810.0,0.24219308]
[1738113454250,0.531072,101820.0,101810.0,0.24219308]
[1738113454447,0.170272,101820.0,101810.0,0.24219308]
[1738113454949,0.170272,101820.0,101810.0,0.14746422]
[1738113455149,0.170272,101820.0,101810.0,0.14946422]
[1738113456549,0.170272,101820.0,101810.0,0.01188122]
[1738113456752,0.170272,101820.0,101810.0,0.00214758]
[1738113456753,0.62380086,101820.0,101810.0,0.00214758]
[1738113459346,0.62380086,101820.0,101810.0,0.00014758]
[1738113459546,0.62880086,101820.0,101810.0,0.00014758]
[1738113460450,0.62380086,101820.0,101810.0,0.00014758]
[1738113460761,0.63180086,101820.0,101810.0,0.00114758]
[1738113461259,0.62880086,101820.0,101810.0,0.00014758]
[1738113461767,0.95146508,101820.0,101810.0,0.00014758]
[1738113463056,0.95446508,101820.0,101810.0,0.00114758]
[1738113463261,0.96439903,101820.0,101810.0,0.00114758]
[1738113463454,0.95639903,101820.0,101810.0,0.00014758]
[1738113463652,0.96139903,101820.0,101810.0,0.00014758]
[1738113464054,0.95639903,101820.0,101810.0,0.00014758]
[1738113464258,0.96439903,101820.0,101810.0,0.00114758]
[1738113465762,0.96139903,101820.0,101810.0,0.00014758]
[1738113466767,0.95639903,101820.0,101810.0,0.00014758]
[1738113467064,0.96139903,101820.0,101810.0,0.00014758]
[1738113469058,0.85873622,101820.0,101810.0,0.00014758]
[1738113469263,0.49793622,101820.0,101810.0,0.00014758]
[1738113469464,0.85873622,101820.0,101810.0,0.00014758]
[1738113469963,0.95146508,101820.0,101810.0,0.00014758]
[1738113474064,0.80477022,101820.0,101810.0,0.00014758]
[1738113482975,1.16557022,101820.0,101810.0,0.00014758]
[1738113486368,0.98960086,101820.0,101810.0,0.00014758]
[1738113489767,1.19425036,101820.0,101810.0,0.00014758]
[1738113491879,1.1015215,101820.0,101810.0,0.00014758]
[1738113492784,1.19425036,101820.0,101810.0,0.00014758]
[1738113493578,1.1015215,101820.0,101810.0,0.00014758]
[1738113493976,0.3799215,101820.0,101810.0,0.00014758]
[1738113494380,0.536072,101820.0,101810.0,0.00014758]
[1738113497086,1.076072,101820.0,101810.0,0.00014758]
[1738113498791,1.13691424,101820.0,101810.0,0.00014758]
[1738113499992,1.076072,101820.0,101810.0,0.00014758]
[1738113500380,0.503372,101820.0,101810.0,0.06098982]
[1738113500580,0.503372,101820.0,101810.0,0.19857582]
[1738113501794,0.56421424,101820.0,101810.0,0.00014758]
[1738113503088,0.503372,101820.0,101810.0,0.00014758]
[1738113503286,0.503372,101820.0,101810.0,0.06098982]
[1738113503787,0.503372,101820.0,101810.0,0.19857582]
[1738113503988,0.680238,101820.0,101810.0,0.19857582]
[1738113504380,0.80192248,101820.0,101810.0,0.00014758]
[1738113504579,0.83482248,101820.0,101810.0,0.00014758]
[1738113505190,0.77398024,101820.0,101810.0,0.00014758]
[1738113512797,0.83482248,101820.0,101810.0,0.00014758]
[1738113514895,0.77398024,101820.0,101810.0,0.00014758]
[1738113515991,0.59711424,101820.0,101810.0,0.00014758]
[1738113524104,0.65795648,101820.0,101810.0,0.00014758]
[1738113526498,1.19795648,101820.0,101810.0,0.00014758]
[1738113527095,0.65795648,101820.0,101810.0,0.00014758]
[1738113527295,1.01875648,101820.0,101810.0,0.00014758]
[1738113528903,0.95791424,101820.0,101810.0,0.00014758]
[1738113529104,1.16256374,101820.0,101810.0,0.00014758]
[1738113529695,1.22340598,101820.0,101810.0,0.00014758]
[1738113531708,1.16256374,101820.0,101810.0,0.00014758]
[1738113532710,1.22340598,101820.0,101810.0,0.00014758]
[1738113535108,1.16256374,101820.0,101810.0,0.00014758]
[1738113543117,1.22340598,101820.0,101810.0,0.00014758]
[1738113545717,1.16256374,101820.0,101810.0,0.00014758]
[1738113547835,1.1017215,101820.0,101810.0,0.00014758]
[1738113548034,1.0688215,101820.0,101810.0,0.06098982]
[1738113548940,0.7080215,101820.0,101810.0,0.06098982]
[1738113550331,0.7080215,101820.0,101810.0,0.19857482]
[1738113550521,0.2096495,101820.0,101810.0,0.19857482]
[1738113550727,0.2096495,101820.0,101810.0,0.55937482]
[1738113554027,0.32922567,101820.0,101810.0,0.73478125]
[1738113554441,0.32922567,101820.0,101810.0,0.74449084]
[1738113555242,0.32922567,101820.0,101810.0,0.80533308]
[1738113555540,0.32922567,101820.0,101810.0,0.74449084]
[1738113557239,0.39006791,101820.0,101810.0,0.74449084]
[1738113557539,0.88843991,101820.0,101810.0,0.3228486]
[1738113557842,0.88843991,101820.0,101810.0,0.38369084]
[1738113557843,0.82759767,101820.0,101810.0,0.38369084]
[1738113558046,0.46679767,101820.0,101810.0,0.38369084]
[1738113558248,0.32922567,101820.0,101810.0,0.38369084]
[1738113558540,0.21101758,101820.0,101810.0,0.74449084]
[1738113562241,0.21101758,101820.0,101810.0,0.56908441]
[1738113564438,0.21101758,101820.0,101810.0,0.50824217]
[1738113564638,0.40943182,101820.0,101810.0,0.00985717]
[1738113564838,0.34858958,101820.0,101810.0,0.00985717]
[1738113565140,0.77023182,101820.0,101810.0,0.00014758]
[1738113565637,0.83107406,101820.0,101810.0,0.00014758]
[1738113565842,0.77023182,101820.0,101810.0,0.00014758]
[1738113566248,0.83107406,101820.0,101810.0,0.00014758]
[1738113567751,0.77023182,101820.0,101810.0,0.00014758]
[1738113568852,0.74106461,101820.0,101810.0,0.00014758]
[1738113569946,0.75082555,101820.0,101810.0,0.00014758]
[1738113571844,0.8979096,101820.0,101810.0,0.00014758]
[1738113572142,0.68973442,101820.0,101810.0,0.19857582]
[1738113572446,0.32893442,101820.0,101810.0,0.26177582]
[1738113572648,0.32893442,101820.0,101810.0,0.62257582]
[1738113573948,0.32893442,101820.0,101810.0,0.26177582]
[1738113574149,0.32893442,101820.0,101810.0,0.62257582]
[1738113576057,0.21095831,101820.0,101810.0,0.62257582]
[1738113576656,0.21095831,101820.0,101810.0,0.65440639]
[1738113580759,0.21095831,101820.0,101810.0,0.29360639]
[1738113581054,0.21095831,101820.0,101810.0,0.65440639]
[1738113583650,0.09326785,101820.0,101810.0,0.82981282]
[1738113593363,0.09326785,101820.0,101810.0,0.46901282]
[1738113593557,0.09326785,101820.0,101810.0,0.82981282]
[1738113598555,0.09326785,101820.0,101810.0,0.79796243]
[1738113601356,0.09326785,101820.0,101810.0,0.85878485]
[1738113601666,0.26492209,101830.0,101820.0,0.137572]
[1738113601860,0.26492209,101830.0,101820.0,0.65171684]
[1738113603864,0.26592209,101830.0,101820.0,0.65171684]
[1738113604370,0.00114758,101830.0,101820.0,0.88561516]
[1738113607566,0.00114758,101830.0,101820.0,0.52481516]
[1738113608675,0.00114758,101830.0,101820.0,0.787458]
[1738113609469,0.00114758,101830.0,101820.0,0.755758]
[1738113609862,0.03194758,101830.0,101820.0,0.755758]
[1738113610063,0.03194758,101830.0,101820.0,0.66310099]
[1738113610064,0.16950558,101830.0,101820.0,0.66310099]
[1738113610365,0.20040558,101830.0,101820.0,0.66310099]
[1738113611961,0.20040558,101830.0,101820.0,0.755758]
[1738113612162,0.20040558,101830.0,101820.0,0.41567224]
[1738113612561,0.16950558,101830.0,101820.0,0.41567224]
[1738113615669,0.03194758,101830.0,101820.0,0.41567224]
[1738113615868,0.03194758,101830.0,101820.0,0.77647224]
[1738113616361,0.14963804,101830.0,101820.0,0.60070896]
[1738113619771,0.11883804,101830.0,101820.0,0.69336597]
[1738113619972,0.11883804,101830.0,101820.0,0.72466597]
[1738113620168,0.29167982,101840.0,101830.0,0.137559]
[1738113620373,0.29167982,101840.0,101830.0,0.65541601]
[1738113621074,0.169706,101870.0,101830.0,0.85224401]
[1738113621269,0.169706,101870.0,101860.0,0.59097501]
[1738113621270,0.0322,101870.0,101860.0,0.59097501]
[1738113621666,0.0322,101870.0,101860.0,0.62327501]
[1738113623777,0.0332,101870.0,101860.0,0.62327501]
[1738113625881,0.0332,101870.0,101860.0,0.26247501]
[1738113626279,0.0332,101870.0,101860.0,0.62327501]
[1738113626477,0.0332,101870.0,101860.0,0.63318047]
[1738113626685,0.0332,101870.0,101860.0,0.27238047]
[1738113627788,0.0332,101870.0,101860.0,0.63318047]
[1738113628886,0.001,101870.0,101860.0,0.63318047]
[1738113629491,0.001,101870.0,101860.0,0.27238047]
[1738113629881,0.001,101870.0,101860.0,0.63318047]
[1738113632785,0.001,101870.0,101860.0,0.27238047]
[1738113633589,0.001,101870.0,101860.0,0.63318047]
[1738113634991,0.001,101870.0,101860.0,0.66518047]
[1738113635980,0.00014758,101880.0,101870.0,0.137505]
[1738113636189,0.00014758,101880.0,101870.0,0.62196201]
[1738113637592,0.00414758,101880.0,101870.0,0.62196201]
[1738113646098,0.00414758,101880.0,101870.0,0.26116201]
[1738113646300,0.00414758,101880.0,101870.0,0.62196201]
[1738113646590,0.00014758,101880.0,101870.0,0.59096201]
[1738113646791,0.16783858,101880.0,101870.0,0.23216201]
[1738113646991,0.23213858,101880.0,101870.0,0.139505]
[1738113647588,0.59293858,101880.0,101870.0,0.139505]
[1738113648192,0.59293858,101880.0,101870.0,0.002]
[1738113649001,0.59293858,101880.0,101870.0,0.23216201]
[1738113649301,0.59293858,101880.0,101870.0,0.59296201]
[1738113649302,0.03034758,101880.0,101870.0,0.59296201]
[1738113649497,0.03034758,101880.0,101870.0,0.74911902]
[1738113649704,0.00014758,101880.0,101870.0,0.65646201]
[1738113654305,0.00014758,101880.0,101870.0,0.83222529]
[1738113656417,0.00014758,101880.0,101870.0,0.9248823]
[1738113656599,0.00014758,101880.0,101870.0,0.83222529]
[1738113658209,0.00014758,101880.0,101870.0,0.89036033]
[1738113658707,0.00014758,101880.0,101870.0,0.85966033]
[1738113658906,0.06234758,101880.0,101870.0,0.85966033]
[1738113659601,0.03044758,101880.0,101870.0,0.85966033]
[1738113660799,0.03044758,101880.0,101870.0,0.82686033]
[1738113660998,0.65469559,101880.0,101870.0,0.23589832]
[1738113661203,0.56203858,101880.0,101870.0,0.23589832]
[1738113662209,0.56203858,101880.0,101870.0,0.002]
[1738113665510,0.56203858,101880.0,101870.0,0.23216201]
[1738113665511,0.34828186,101880.0,101870.0,0.23216201]
[1738113667210,0.34828186,101880.0,101870.0,0.139505]
[1738113669714,0.20123858,101880.0,101870.0,0.139505]
[1738113670112,0.56203858,101880.0,101870.0,0.139505]
[1738113670414,0.56203858,101880.0,101870.0,0.002]
[1738113671505,0.65469559,101880.0,101870.0,0.002]
[1738113671820,0.137505,101870.0,101860.0,0.17558924]
[1738113672004,0.62156201,101870.0,101860.0,0.17558924]
[1738113672414,0.48405701,101870.0,101850.0,0.2340459]
[1738113672616,0.62177501,101860.0,101850.0,0.2340459]
[1738113675212,0.62577501,101860.0,101850.0,0.2340459]
[1738113675608,0.65847501,101860.0,101850.0,0.2340459]
[1738113675808,0.565818,101860.0,101850.0,0.2340459]
[1738113677211,0.561818,101860.0,101850.0,0.2340459]
[1738113677413,0.562818,101860.0,101850.0,0.2340459]
[1738113678221,0.70986128,101860.0,101850.0,0.00014758]
[1738113678423,0.71286128,101860.0,101850.0,0.00014758]
[1738113679608,0.80551829,101860.0,101850.0,1e-08]
[1738113679813,0.137545,101840.0,101830.0,0.50814561]
[1738113680411,0.137545,101840.0,101830.0,0.60080262]
[1738113681222,0.137545,101840.0,101830.0,0.60280262]
[1738113681614,0.39414758,101850.0,101840.0,0.137545]
[1738113681615,0.49848258,101850.0,101840.0,0.137545]
[1738113681821,0.49848258,101850.0,101840.0,0.29540201]
[1738113682213,0.49848258,101850.0,101840.0,0.32580201]
[1738113682409,0.13768258,101850.0,101840.0,0.32580201]
[1738113682821,0.13868258,101850.0,101840.0,0.32580201]
[1738113683125,0.13868258,101850.0,101840.0,0.68660201]
[1738113684028,0.00114758,101850.0,101840.0,0.68660201]
[1738113684521,0.00014758,101850.0,101840.0,0.68860201]
[1738113686321,0.13767958,101850.0,101840.0,0.68860201]
[1738113686519,0.13767958,101850.0,101840.0,0.595945]
[1738113686711,0.13767958,101850.0,101840.0,0.565545]
[1738113686917,0.13767958,101850.0,101840.0,0.204745]
[1738113687221,0.13767958,101850.0,101840.0,0.565545]
[1738113687621,0.13767958,101850.0,101840.0,0.563545]
[1738113687816,0.13767958,101850.0,101840.0,0.565545]
[1738113688016,0.13767958,101850.0,101840.0,0.65820201]
[1738113688217,0.13867958,101850.0,101840.0,0.65620201]
[1738113688821,0.13767958,101850.0,101840.0,0.65820201]
[1738113691629,0.13767958,101850.0,101840.0,0.29740201]
[1738113691829,0.13767958,101850.0,101840.0,0.65820201]
[1738113692024,0.13767958,101850.0,101840.0,0.565545]
[1738113692231,0.13767958,101850.0,101840.0,0.204745]
[1738113692431,0.13767958,101850.0,101840.0,0.0672]
[1738113692625,0.53007958,101850.0,101840.0,0.0672]
[1738113692819,0.62273659,101850.0,101840.0,0.0672]
[1738113693024,0.65443659,101850.0,101840.0,0.002]
[1738113694131,0.68463659,101850.0,101840.0,0.002]
[1738113694533,0.68563659,101850.0,101830.0,0.53964561]
[1738113694831,0.137545,101840.0,101830.0,0.63230262]
[1738113695626,0.137545,101840.0,101830.0,0.63430262]
[1738113698530,0.50986032,101850.0,101840.0,0.137545]
[1738113698531,0.61579432,101850.0,101840.0,0.137545]
[1738113698732,0.61579432,101850.0,101840.0,0.29390201]
[1738113698932,0.61579432,101850.0,101840.0,0.201245]
[1738113699941,0.61679432,101850.0,101840.0,0.201245]
[1738113700739,0.85649461,101850.0,101840.0,0.032]
[1738113700933,0.137545,101840.0,101830.0,0.53964561]
[1738113701535,0.137545,101840.0,101830.0,0.63230262]
[1738113702539,0.137545,101840.0,101830.0,0.63430262]
[1738113704042,0.3277036,101850.0,101830.0,0.49674662]
[1738113704242,0.4020376,101850.0,101840.0,0.560145]
[1738113704540,0.28472486,101850.0,101840.0,0.65280201]
[1738113705038,0.28472486,101850.0,101840.0,0.29200201]
[1738113705545,0.28572486,101850.0,101840.0,0.29200201]
[1738113707630,0.28472486,101850.0,101840.0,0.29400201]
[1738113707834,0.25547173,101850.0,101840.0,0.29400201]
[1738113708644,0.25547173,101850.0,101840.0,0.65480201]
[1738113711648,0.40251501,101850.0,101840.0,0.65480201]
[1738113712855,0.40251501,101850.0,101840.0,0.562145]
[1738113715251,0.40251501,101850.0,101840.0,0.201345]
[1738113715453,0.40251501,101850.0,101840.0,0.562145]
[1738113716355,0.40251501,101850.0,101840.0,0.531145]
[1738113717648,0.40251501,101850.0,101840.0,0.62380201]
[1738113717849,0.40351501,101850.0,101840.0,0.62180201]
[1738113718439,0.40251501,101850.0,101840.0,0.62180201]
[1738113718642,0.40251501,101850.0,101840.0,0.62380201]
[1738113718643,0.28472486,101850.0,101840.0,0.62380201]
[1738113719051,0.28472486,101850.0,101840.0,0.26300201]
[1738113719249,0.28472486,101850.0,101840.0,0.62380201]
[1738113720748,0.28572486,101850.0,101840.0,0.62180201]
[1738113723842,0.14819086,101850.0,101840.0,0.62180201]
[1738113725057,0.26602856,101850.0,101840.0,0.62180201]
[1738113726656,0.40356056,101850.0,101840.0,0.529145]
[1738113726850,0.40356056,101850.0,101840.0,0.62180201]
[1738113727948,0.34485682,101850.0,101840.0,0.85570033]
[1738113729657,0.20732482,101850.0,101840.0,0.85570033]
[1738113739657,0.08948712,101850.0,101840.0,1.147331]
[1738113743563,0.08948712,101850.0,101840.0,0.85570033]
[1738113752074,0.22701912,101850.0,101840.0,0.37144332]
[1738113752379,0.82861383,101850.0,101840.0,0.23389832]
[1738113755369,0.73595682,101850.0,101840.0,0.32655533]
[1738113756174,0.7054655,101850.0,101840.0,0.09265701]
[1738113756874,0.7054655,101850.0,101830.0,0.60080162]
[1738113758772,0.3608,101840.0,101830.0,0.00978961]
[1738113758970,0.3608,101840.0,101820.0,0.7324159]
[1738113758971,0.51655701,101840.0,101820.0,0.7324159]
[1738113759172,0.137559,101830.0,101820.0,0.7324159]
[1738113759472,0.137559,101830.0,101820.0,0.82507291]
[1738113760685,0.138559,101830.0,101820.0,0.8399374]
[1738113761982,0.138559,101830.0,101820.0,0.4791374]
[1738113762183,0.138559,101830.0,101820.0,0.8399374]
[1738113764182,0.22683535,101830.0,101820.0,0.60603908]
[1738113765484,0.22683535,101830.0,101820.0,0.63743908]
[1738113770275,0.138559,101830.0,101820.0,0.63743908]
[1738113774684,0.138559,101830.0,101820.0,0.27663908]
[1738113775385,0.138559,101830.0,101820.0,0.63743908]
[1738113777188,0.22683535,101830.0,101820.0,0.63743908]
[1738113778578,0.22683535,101830.0,101820.0,0.27663908]
[1738113781396,0.34453715,101830.0,101820.0,0.27663908]
[1738113781689,0.79799416,101830.0,101820.0,0.04641207]
[1738113781889,0.70533715,101830.0,101820.0,0.04641207]
[1738113782277,0.70533715,101830.0,101820.0,0.27664108]
[1738113782784,0.70533715,101830.0,101820.0,0.24479969]
[1738113784190,0.70533715,101830.0,101820.0,0.10722769]
[1738113785493,0.64648625,101830.0,101820.0,0.10722769]
[1738113787294,0.70730187,101830.0,101820.0,0.00514758]
[1738113787486,0.73870187,101830.0,101820.0,0.00514758]
[1738113788689,0.67788625,101830.0,101820.0,0.0659632]
[1738113789592,0.73870187,101830.0,101820.0,0.0659632]
[1738113793100,0.37790187,101830.0,101820.0,0.0659632]
[1738113793296,0.76726054,101830.0,101820.0,0.0659632]
[1738113794700,0.70644492,101830.0,101820.0,0.0659632]
[1738113797903,0.70644492,101830.0,101820.0,0.00514758]
[1738113797904,0.76726054,101830.0,101820.0,0.00514758]
[1738113801090,1.30726054,101830.0,101820.0,0.00514758]
[1738113801298,0.91442624,101830.0,101820.0,0.00514758]
[1738113801802,1.45442624,101830.0,101820.0,0.00514758]
[1738113802501,0.91442624,101830.0,101820.0,0.00514758]
[1738113804200,0.91342624,101830.0,101820.0,0.00014758]
[1738113804608,0.91742624,101830.0,101820.0,0.00014758]
[1738113805001,0.9270628,101830.0,101820.0,0.00014758]
[1738113805309,0.7798971,101830.0,101820.0,0.00014758]
[1738113805507,0.137586,101810.0,101800.0,0.35638936]
[1738113805705,0.137586,101810.0,101800.0,0.41720498]
[1738113806910,0.137586,101810.0,101800.0,0.42020498]
[1738113809103,0.138586,101810.0,101800.0,0.41720498]
[1738113809304,0.34461651,101810.0,101800.0,0.24110527]
[1738113809509,0.34461651,101810.0,101800.0,0.30192089]
[1738113810711,0.34361651,101810.0,101800.0,0.30392089]
[1738113811213,0.34361651,101810.0,101800.0,0.24310527]
[1738113813715,0.25531772,101810.0,101800.0,0.24310527]
[1738113814514,0.67693334,101810.0,101800.0,0.002]
[1738113814704,0.70973334,101810.0,101800.0,0.002]